fUSD/lending_fUSD_20250123
["ID","MTS","AMOUNT","RATE_DAILY","PERIOD"]
[350070782,1737599438668,-151.09,0.000183,2]
[350070783,1737599438677,-1405.558,0.00018337,2]
[350070784,1737599438686,-254.38,0.0001838,2]
[350070785,1737599438699,-237.37,0.00018474,2]
[350070786,1737599438709,-200.0,0.00018476,2]
[350070787,1737599438718,-337.11980556,0.00018521,2]
[350070788,1737599438728,-500.0,0.00018548,2]
[350070789,1737599438738,-1000.0,0.00018605,2]
[350070790,1737599438747,-576.94,0.00018751,2]
[350070791,1737599438756,-337.11980556,0.00018762,2]
[350070792,1737599438765,-401.06520507,0.00018789,2]
[350070793,1737599438775,-1200.0,0.000188,6]
[350070794,1737599438785,-1000.0,0.00018878,2]
[350070795,1737599438794,-1735.0752525,0.000189,2]
[350070796,1737599438803,-1200.0,0.000189,6]
[350070797,1737599438812,-1600.0,0.000189,6]
[350070798,1737599438822,-151.09,0.0001899,2]
[350070799,1737599438831,-151.09,0.0001899,2]
[350070800,1737599438841,-151.09,0.0001899,2]
[350070801,1737599438850,-151.09,0.0001899,2]
[350070802,1737599438859,-151.09,0.0001899,2]
[350070803,1737599438872,-151.09,0.0001899,2]
[350070804,1737599438881,-151.09,0.0001899,2]
[350070805,1737599438891,-151.09,0.0001899,2]
[350070806,1737599438901,-151.09,0.0001899,2]
[350070807,1737599438912,-151.09,0.0001899,2]
[350070808,1737599438921,-151.09,0.0001899,2]
[350070809,1737599438931,-151.09,0.0001899,2]
[350070810,1737599438942,-151.09,0.0001899,2]
[350070811,1737599438951,-151.09,0.0001899,2]
[350070812,1737599438960,-151.09,0.0001899,2]
[350070813,1737599438970,-151.09,0.0001899,2]
[350070814,1737599438979,-151.09,0.0001899,2]
[350070815,1737599438988,-151.09,0.0001899,2]
[350070816,1737599438998,-151.09,0.0001899,2]
[350070817,1737599439007,-151.09,0.0001899,2]
[350070818,1737599439017,-151.09,0.0001899,2]
[350070819,1737599439026,-151.09,0.0001899,2]
[350070820,1737599439036,-151.09,0.0001899,2]
[350070821,1737599439045,-151.09,0.0001899,2]
[350070822,1737599439054,-151.09,0.0001899,2]
[350070823,1737599439063,-151.09,0.0001899,2]
[350070824,1737599439073,-151.09,0.0001899,2]
[350070825,1737599439082,-151.09,0.0001899,2]
[350070826,1737599439092,-151.09,0.0001899,2]
[350070827,1737599439101,-151.09,0.0001899,2]
[350070828,1737599439111,-151.09,0.0001899,2]
[350070829,1737599439120,-151.09,0.0001899,2]
[350070830,1737599439129,-151.09,0.0001899,2]
[350070831,1737599439139,-151.09,0.0001899,2]
[350070832,1737599439148,-151.09,0.0001899,2]
[350070833,1737599439157,-151.09,0.0001899,2]
[350070834,1737599439167,-151.09,0.0001899,2]
[350070835,1737599439176,-151.09,0.0001899,2]
[350070836,1737599439185,-151.09,0.0001899,2]
[350070837,1737599439196,-650.0,0.00019,2]
[350070838,1737599439206,-2085461.44618343,0.00019,2]
[350070839,1737599439216,-4241.88,0.00019,2]
[350070840,1737599439226,-337.11980556,0.00019003,2]
[350070841,1737599439235,-340.1706485,0.0001901,7]
[350070842,1737599439245,-5216.828,0.00019014,2]
[350070843,1737599439254,-151.09,0.00019068,2]
[350070844,1737599439265,-151.09,0.00019068,2]
[350070845,1737599439277,-151.09,0.00019068,2]
[350070846,1737599439288,-252.91629482,0.00019077,2]
[350070847,1737599439297,-14706.7472,0.00019078,2]
[350070848,1737599439307,-11184.9923,0.00019078,2]
[350070849,1737599439316,-4522.4359,0.00019078,2]
[350070850,1737599439326,-147462.9662,0.00019078,2]
[350070851,1737599439335,-5000.0,0.00019078,2]
[350070852,1737599439344,-182.2693,0.00019078,2]
[350070853,1737599439353,-151.09,0.00019168,2]
[350070854,1737599439362,-151.09,0.00019168,2]
[350070855,1737599439372,-500.0,0.00019178,2]
[350070856,1737599439381,-251.59672816,0.00019178,2]
[350070857,1737599439391,-500.0,0.00019178,14]
[350070858,1737599439403,-500.0,0.00019178,2]
[350070859,1737599439412,-500.0,0.00019178,2]
[350070860,1737599439422,-500.00383754,0.00019178,2]
[350070861,1737599439431,-402.19561441,0.00019178,2]
[350070862,1737599439441,-500.0,0.00019178,2]
[350070863,1737599439451,-198.70188069,0.00019178,2]
[350070864,1737599439461,-500.0,0.00019178,2]
[350070865,1737599439470,-500.0,0.00019178,2]
[350070866,1737599439480,-500.0,0.00019178,2]
[350070867,1737599439489,-500.0,0.00019178,2]
[350070868,1737599439499,-500.0,0.00019178,2]
[350070869,1737599439508,-500.0,0.00019178,2]
[350070870,1737599439518,-500.0,0.00019178,2]
[350070871,1737599439527,-500.0,0.00019178,2]
[350070872,1737599439536,-500.0,0.00019178,2]
[350070873,1737599439546,-500.0,0.00019178,2]
[350070874,1737599439555,-500.0,0.00019178,2]
[350070875,1737599439564,-500.0,0.00019178,2]
[350070876,1737599439574,-500.0,0.00019178,2]
[350070877,1737599439583,-500.0,0.00019178,2]
[350070878,1737599439592,-500.0,0.00019178,2]
[350070879,1737599439602,-500.0,0.00019178,2]
[350070880,1737599439611,-500.0,0.00019178,2]
[350070881,1737599439620,-500.0,0.00019178,2]
[350070882,1737599439629,-500.0,0.00019178,2]
[350070883,1737599439639,-478.4806031,0.00019178,2]
[350070884,1737599439648,-500.0,0.00019178,2]
[350070885,1737599439657,-500.0,0.00019178,2]
[350070886,1737599439667,-500.0,0.00019178,2]
[350070887,1737599439676,-500.0,0.00019178,2]
[350070888,1737599439686,-500.0,0.00019178,2]
[350070889,1737599439696,-500.0,0.00019178,2]
[350070890,1737599439706,-500.0,0.00019178,2]
[350070891,1737599439715,-500.0,0.00019178,2]
[350070892,1737599439726,-500.0,0.00019178,2]
[350070893,1737599439735,-509.86,0.00019178,2]
[350070894,1737599439745,-500.0,0.00019178,2]
[350070895,1737599439754,-500.0,0.00019178,2]
[350070896,1737599439764,-500.0,0.00019178,2]
[350070897,1737599439773,-500.0,0.00019178,2]
[350070898,1737599439783,-500.0,0.00019178,2]
[350070899,1737599439792,-500.0,0.00019178,2]
[350070900,1737599439802,-500.0,0.00019178,2]
[350070901,1737599439811,-505.3,0.00019178,2]
[350070902,1737599439821,-500.0,0.00019178,2]
[350070903,1737599439830,-500.0,0.00019178,2]
[350070904,1737599439839,-500.0,0.00019178,2]
[350070905,1737599439849,-500.0,0.00019178,2]
[350070906,1737599439858,-500.0,0.00019178,2]
[350070907,1737599439871,-500.0,0.00019178,2]
[350070908,1737599439881,-500.0,0.00019178,2]
[350070909,1737599439891,-500.0,0.00019178,2]
[350070910,1737599439903,-500.0,0.00019178,2]
[350070911,1737599439912,-500.0,0.00019178,2]
[350070912,1737599439922,-500.0,0.00019178,2]
[350070913,1737599439931,-500.0,0.00019178,2]
[350070914,1737599439943,-1459.64,0.00019178,2]
[350070915,1737599439954,-671.25,0.00019178,2]
[350070916,1737599439964,-2004.83,0.00019178,2]
[350070917,1737599439973,-500.0,0.00019178,2]
[350070918,1737599439983,-500.0,0.00019178,2]
[350070919,1737599439992,-841.37,0.00019178,2]
[350070920,1737599440002,-1812.62,0.00019178,2]
[350070921,1737599440011,-1463.35,0.00019178,2]
[350070922,1737599440020,-500.0,0.00019178,2]
[350070923,1737599440030,-924.69,0.00019178,2]
[350070924,1737599440039,-3081.37,0.00019178,2]
[350070925,1737599440049,-500.0,0.00019178,2]
[350070926,1737599440059,-694.55,0.00019178,2]
[350070927,1737599440068,-1262.91,0.00019178,2]
[350070928,1737599440077,-547.76,0.00019178,2]
[350070929,1737599440086,-929.07,0.00019178,2]
[350070930,1737599440095,-1206.37,0.00019178,2]
[350070931,1737599440104,-1867.47,0.00019178,2]
[350070933,1737599440113,-500.0,0.00019178,2]
[350070935,1737599440122,-1460.57,0.00019178,2]
[350070937,1737599440131,-1160.34,0.00019178,2]
[350070939,1737599440140,-500.0,0.00019178,2]
[350070941,1737599440150,-500.0,0.00019178,2]
[350070943,1737599440159,-500.0,0.00019178,2]
[350070944,1737599440168,-796.55,0.00019178,2]
[350070946,1737599440177,-1258.1,0.00019178,2]
[350070948,1737599440186,-1251.58,0.00019178,2]
[350070950,1737599440198,-2295.01,0.00019178,2]
[350070951,1737599440208,-2099.06,0.00019178,2]
[350070952,1737599440225,-1038.44,0.00019178,2]
[350070953,1737599440236,-859.68,0.00019178,2]
[350070954,1737599440246,-839.81,0.00019178,2]
[350070955,1737599440256,-500.0,0.00019178,2]
[350070956,1737599440265,-2809.15,0.00019178,2]
[350070957,1737599440275,-500.0,0.00019178,2]
[350070958,1737599440286,-500.0,0.00019178,2]
[350070959,1737599440296,-500.0,0.00019178,2]
[350070960,1737599440305,-500.0,0.00019178,2]
[350070961,1737599440315,-500.0,0.00019178,2]
[350070962,1737599440325,-512.25,0.00019178,2]
[350070963,1737599440334,-500.0,0.00019178,2]
[350070964,1737599440343,-500.0,0.00019178,2]
[350070965,1737599440353,-500.0,0.00019178,2]
[350070966,1737599440363,-847.25,0.00019178,2]
[350070967,1737599440372,-500.0,0.00019178,2]
[350070968,1737599440382,-809.53,0.00019178,2]
[350070969,1737599440391,-500.0,0.00019178,2]
[350070970,1737599440400,-503.13085065,0.00019178,2]
[350070971,1737599440410,-500.0,0.00019178,2]
[350070972,1737599440419,-500.0,0.00019178,2]
[350070973,1737599440429,-500.0,0.00019178,2]
[350070974,1737599440438,-500.0,0.00019178,2]
[350070975,1737599440449,-500.0,0.00019178,2]
[350070976,1737599440458,-500.0,0.00019178,2]
[350070977,1737599440468,-500.0,0.00019178,2]
[350070978,1737599440477,-500.0,0.00019178,2]
[350070979,1737599440487,-500.0,0.00019178,2]
[350070980,1737599440496,-500.0,0.00019178,2]
[350070981,1737599440506,-267.78482446,0.00019178,2]
[350070982,1737599440516,-500.0,0.00019178,2]
[350070983,1737599440526,-500.0,0.00019178,2]
[350070984,1737599440535,-302.03,0.00019178,2]
[350070985,1737599440545,-501.62462531,0.00019178,2]
[350070986,1737599440554,-2577.5,0.00019178,2]
[350070987,1737599440574,-496.5,0.00019178,2]
[350070988,1737599440585,-1303.47,0.00019178,2]
[350070989,1737599440594,-504.53768539,0.00019178,2]
[350070990,1737599440603,-259.54377516,0.00019178,2]
[350070991,1737599440613,-1516.89,0.00019235,2]
[350070992,1737599440622,-337.11980556,0.00019245,2]
[350070993,1737599440631,-175.56,0.00019313,2]
[350070994,1737599440641,-500.0,0.00019352,2]
[350070995,1737599440650,-24908.4487,0.00019352,14]
[350070996,1737599440659,-576.94,0.0001942,2]
[350070997,1737599440670,-151.09,0.0001944,2]
[350070998,1737599440680,-151.09,0.00019441,2]
[350070999,1737599440694,-151.09,0.00019441,2]
[350071000,1737599440703,-151.09,0.00019442,2]
[350071001,1737599440713,-500.0,0.0001945,2]
[350071002,1737599440722,-492.581712,0.0001945,2]
[350071003,1737599440731,-565.35,0.0001945,2]
[350071004,1737599440740,-500.0,0.0001945,2]
[350071005,1737599440750,-500.0,0.0001945,2]
[350071006,1737599440759,-832.87,0.0001945,2]
[350071007,1737599440770,-567.524343,0.0001945,2]
[350071008,1737599440780,-159.534965,0.0001945,2]
[350071009,1737599440790,-500.0,0.0001945,2]
[350071010,1737599440799,-500.0,0.0001945,2]
[350071011,1737599440811,-160.534606,0.0001945,2]
[350071012,1737599440820,-598.68,0.0001945,2]
[350071013,1737599440831,-726.07,0.0001945,2]
[350071014,1737599440840,-151.101062,0.0001945,2]
[350071015,1737599440851,-877.0,0.0001945,2]
[350071016,1737599440861,-561.82,0.0001945,2]
[350071017,1737599441048,-160.936355,0.0001945,2]
[350071018,1737599441058,-1634.03,0.0001945,2]
[350071019,1737599441067,-159.527336,0.0001945,2]
[350071020,1737599441076,-159.931685,0.0001945,2]
[350071021,1737599441086,-1061.31,0.0001945,2]
[350071022,1737599441095,-2096.31,0.0001945,2]
[350071023,1737599441105,-2326.67,0.0001945,2]
[350071024,1737599441114,-251.256399,0.0001945,2]
[350071025,1737599441124,-500.0,0.0001945,2]
[350071026,1737599441133,-1001.28,0.0001945,2]
[350071027,1737599441144,-168.433503,0.0001945,2]
[350071028,1737599441154,-2560.3,0.0001945,2]
[350071029,1737599441163,-502.52625781,0.0001945,2]
[350071030,1737599441173,-500.0,0.0001945,2]
[350071031,1737599441182,-1111.68,0.0001945,2]
[350071032,1737599441194,-1248.25,0.0001945,2]
[350071033,1737599441203,-434.61613587,0.00019451,2]
[350071034,1737599441212,-500.0,0.00019451,2]
[350071035,1737599441222,-500.0,0.00019451,2]
[350071036,1737599441232,-500.0,0.00019451,2]
[350071037,1737599441242,-675.5,0.00019451,2]
[350071038,1737599441252,-156.05940059,0.00019451,2]
[350071039,1737599441261,-988.31,0.00019451,2]
[350071040,1737599441270,-500.0,0.00019451,2]
[350071041,1737599441279,-500.0,0.00019451,2]
[350071042,1737599441289,-500.0,0.00019451,2]
[350071043,1737599441298,-500.0,0.00019451,2]
[350071044,1737599441308,-500.0,0.00019451,2]
[350071045,1737599441317,-306.58302104,0.00019451,2]
[350071046,1737599441327,-500.0,0.00019451,2]
[350071047,1737599441337,-500.0,0.00019451,2]
[350071048,1737599441346,-355.15052018,0.00019451,2]
[350071049,1737599441355,-519.05221464,0.00019451,2]
[350071050,1737599441365,-500.0,0.00019451,2]
[350071051,1737599441375,-500.0,0.00019451,2]
[350071052,1737599441384,-500.0,0.00019451,2]
[350071053,1737599441394,-500.0,0.00019451,2]
[350071054,1737599441403,-500.0,0.00019451,2]
[350071055,1737599441413,-500.0,0.00019451,2]
[350071056,1737599441422,-500.0,0.00019451,2]
[350071057,1737599441432,-500.0,0.00019451,2]
[350071058,1737599441443,-500.0,0.00019451,2]
[350071059,1737599441453,-500.0,0.00019451,2]
[350071060,1737599441463,-500.0,0.00019451,2]
[350071061,1737599441472,-500.0,0.00019451,2]
[350071062,1737599441483,-500.0,0.00019451,2]
[350071063,1737599441492,-500.0,0.00019451,2]
[350071064,1737599441502,-500.0,0.00019451,2]
[350071065,1737599441511,-500.0,0.00019451,2]
[350071066,1737599441520,-500.0,0.00019451,2]
[350071067,1737599441530,-500.0,0.00019451,2]
[350071068,1737599441540,-500.0,0.00019451,2]
[350071069,1737599441550,-517.72320627,0.00019451,2]
[350071070,1737599441560,-500.0,0.00019451,2]
[350071071,1737599441569,-500.0,0.00019451,2]
[350071072,1737599441579,-500.0,0.00019451,2]
[350071073,1737599441589,-500.0,0.00019451,2]
[350071074,1737599441598,-500.0,0.00019451,2]
[350071075,1737599441608,-500.0,0.00019451,2]
[350071076,1737599441617,-500.0,0.00019451,2]
[350071077,1737599441627,-500.0,0.00019451,2]
[350071078,1737599441636,-561.44,0.00019451,2]
[350071079,1737599441646,-502.7,0.00019451,2]
[350071080,1737599441656,-497.26747614,0.00019451,2]
[350071081,1737599441665,-647.89,0.00019451,2]
[350071082,1737599441675,-500.0,0.00019451,2]
[350071083,1737599441685,-3339.86,0.00019451,2]
[350071084,1737599441696,-500.0,0.00019451,2]
[350071085,1737599441706,-497.44198288,0.00019451,2]
[350071086,1737599441716,-500.99393048,0.00019451,2]
[350071087,1737599441725,-500.83366856,0.00019451,2]
[350071088,1737599441734,-500.0,0.00019451,2]
[350071089,1737599441743,-502.36486883,0.00019451,2]
[350071090,1737599441753,-788.96,0.00019451,2]
[350071091,1737599441766,-500.0,0.00019451,2]
[350071092,1737599441775,-772.85,0.00019451,2]
[350071093,1737599441784,-500.0,0.00019451,2]
[350071094,1737599441793,-1244.64,0.00019451,2]
[350071095,1737599441803,-500.0,0.00019451,2]
[350071096,1737599441813,-500.0,0.00019451,2]
[350071097,1737599441822,-500.0,0.00019451,2]
[350071098,1737599441832,-561.73,0.00019451,2]
[350071099,1737599441841,-500.0,0.00019451,2]
[350071100,1737599441851,-1204.99,0.00019451,2]
[350071101,1737599441862,-500.0,0.00019451,2]
[350071102,1737599441874,-500.0,0.00019451,2]
[350071103,1737599441884,-500.0,0.00019451,2]
[350071104,1737599441893,-1657.73,0.00019451,2]
[350071105,1737599441904,-673.68,0.00019451,2]
[350071106,1737599441914,-500.0,0.00019451,2]
[350071107,1737599441924,-501.79,0.00019451,2]
[350071108,1737599441933,-500.0,0.00019451,2]
[350071109,1737599441945,-2667.34,0.00019451,2]
[350071110,1737599441954,-500.0,0.00019451,2]
[350071111,1737599441964,-742.07,0.00019451,2]
[350071112,1737599441974,-1126.57,0.00019451,2]
[350071113,1737599441983,-500.0,0.00019451,2]
[350071114,1737599441993,-1053.15,0.00019451,2]
[350071115,1737599442003,-500.0,0.00019451,2]
[350071116,1737599442012,-500.0,0.00019451,2]
[350071117,1737599442022,-1636.74,0.00019451,2]
[350071118,1737599442031,-1167.74,0.00019451,2]
[350071119,1737599442041,-500.0,0.00019451,2]
[350071120,1737599442050,-537.15,0.00019451,2]
[350071121,1737599442060,-500.0,0.00019451,2]
[350071122,1737599442069,-1055.11,0.00019451,2]
[350071123,1737599442078,-500.0,0.00019451,2]
[350071124,1737599442088,-3246.93,0.00019451,2]
[350071125,1737599442098,-500.0,0.00019451,2]
[350071126,1737599442107,-964.19,0.00019451,2]
[350071127,1737599442117,-500.0,0.00019451,2]
[350071128,1737599442127,-516.42734901,0.00019451,2]
[350071129,1737599442137,-756.51,0.00019451,2]
[350071130,1737599442149,-500.0,0.00019451,2]
[350071131,1737599442159,-1000.0,0.00019451,2]
[350071132,1737599442169,-500.0,0.00019451,2]
[350071133,1737599442179,-500.0,0.00019451,2]
[350071134,1737599442188,-1060.92,0.00019451,2]
[350071135,1737599442203,-500.0,0.00019451,2]
[350071136,1737599442214,-1921.47,0.00019451,2]
[350071137,1737599442223,-500.0,0.00019451,2]
[350071138,1737599442234,-500.0,0.00019451,2]
[350071139,1737599442244,-500.0,0.00019451,2]
[350071140,1737599442253,-923.14,0.00019451,2]
[350071141,1737599442264,-500.0,0.00019451,2]
[350071142,1737599442273,-473.74848666,0.00019451,2]
[350071143,1737599442283,-1906.61,0.00019451,2]
[350071144,1737599442292,-500.0,0.00019451,2]
[350071145,1737599442302,-500.0,0.00019451,2]
[350071146,1737599442312,-500.0,0.00019451,2]
[350071147,1737599442321,-500.0,0.00019451,2]
[350071148,1737599442332,-1771.53,0.00019451,2]
[350071149,1737599442342,-1218.14,0.00019451,2]
[350071150,1737599442352,-1872.91,0.00019451,2]
[350071151,1737599442362,-500.0,0.00019451,2]
[350071152,1737599442372,-500.0,0.00019451,2]
[350071153,1737599442383,-500.0,0.00019451,2]
[350071154,1737599442396,-501.74432625,0.00019451,2]
[350071155,1737599442407,-500.0,0.00019451,2]
[350071156,1737599442419,-500.0,0.00019451,2]
[350071157,1737599442429,-500.0,0.00019451,2]
[350071158,1737599442439,-500.0,0.00019451,2]
[350071160,1737599442456,-504.28576485,0.00019451,2]
[350071162,1737599442471,-512.65491056,0.00019451,2]
[350071163,1737599442488,-500.0,0.00019451,2]
[350071164,1737599442497,-692.17,0.00019451,2]
[350071166,1737599442506,-500.0,0.00019451,2]
[350071168,1737599442516,-500.0,0.00019451,2]
[350071169,1737599442527,-501.21750696,0.00019451,2]
[350071171,1737599442537,-500.0,0.00019451,2]
[350071173,1737599442547,-500.0,0.00019451,2]
[350071174,1737599442558,-526.8,0.00019451,2]
[350071176,1737599442568,-500.0,0.00019451,2]
[350071177,1737599442578,-503.6489101,0.00019451,2]
[350071178,1737599442587,-500.0,0.00019451,2]
[350071179,1737599442597,-681.51,0.00019451,2]
[350071180,1737599442605,-500.0,0.00019451,2]
[350071181,1737599442614,-500.0,0.00019451,2]
[350071183,1737599442625,-500.0,0.00019451,2]
[350071185,1737599442636,-688.26,0.00019451,2]
[350071187,1737599442645,-267.4126664,0.00019451,2]
[350071189,1737599442654,-500.0,0.00019451,2]
[350071190,1737599442663,-505.85273738,0.00019451,2]
[350071191,1737599442673,-500.0,0.00019451,2]
[350071192,1737599442683,-500.0,0.00019451,2]
[350071193,1737599442694,-502.5240119,0.00019451,2]
[350071194,1737599442703,-500.0,0.00019451,2]
[350071195,1737599442713,-878.81,0.00019451,2]
[350071196,1737599442722,-499.6720841,0.00019451,2]
[350071197,1737599442732,-500.0,0.00019451,2]
[350071198,1737599442741,-529.67,0.00019451,2]
[350071199,1737599442751,-758.26,0.00019451,2]
[350071200,1737599442760,-1218.65,0.00019451,2]
[350071201,1737599442769,-500.0,0.00019451,2]
[350071202,1737599442778,-500.0,0.00019451,2]
[350071203,1737599442789,-164.12083521,0.00019451,2]
[350071204,1737599442798,-500.0,0.00019451,2]
[350071205,1737599442808,-561.04270112,0.00019451,2]
[350071206,1737599442817,-502.38418617,0.00019451,2]
[350071207,1737599442826,-500.0,0.00019451,2]
[350071208,1737599442836,-1137.11,0.00019451,2]
[350071209,1737599442846,-500.0,0.00019451,2]
[350071210,1737599442856,-500.0,0.00019451,2]
[350071211,1737599442868,-2655.17,0.00019451,2]
[350071212,1737599442878,-500.0,0.00019451,2]
[350071213,1737599442888,-500.0,0.00019452,2]
[350071214,1737599442897,-229.95562308,0.00019452,14]
[350071215,1737599442907,-500.0,0.00019452,2]
[350071216,1737599442916,-500.0,0.00019452,2]
[350071217,1737599442926,-215.67999132,0.00019452,2]
[350071218,1737599442937,-500.0,0.00019452,2]
[350071219,1737599442948,-500.0,0.00019452,2]
[350071221,1737599442958,-500.0,0.00019452,2]
[350071223,1737599442968,-185.87168608,0.00019452,2]
[350071225,1737599442977,-500.0,0.00019452,2]
[350071226,1737599442987,-500.0,0.00019452,2]
[350071227,1737599442996,-500.0,0.00019452,2]
[350071228,1737599443006,-500.0,0.00019452,2]
[350071230,1737599443015,-500.0,0.00019452,2]
[350071232,1737599443025,-500.0,0.00019452,2]
[350071234,1737599443036,-500.0,0.00019452,2]
[350071235,1737599443047,-500.0,0.00019452,2]
[350071236,1737599443056,-219.36144771,0.00019452,2]
[350071237,1737599443066,-500.0,0.00019452,2]
[350071238,1737599443075,-500.0,0.00019452,2]
[350071239,1737599443084,-500.0,0.00019452,2]
[350071240,1737599443094,-500.0,0.00019452,2]
[350071241,1737599443103,-500.0,0.00019452,2]
[350071242,1737599443112,-500.0,0.00019452,2]
[350071243,1737599443121,-509.86,0.00019452,2]
[350071244,1737599443131,-500.0,0.00019452,2]
[350071245,1737599443141,-500.0,0.00019452,2]
[350071246,1737599443151,-505.3,0.00019452,2]
[350071247,1737599443160,-500.0,0.00019452,2]
[350071248,1737599443169,-500.0,0.00019452,2]
[350071249,1737599443179,-500.0,0.00019452,2]
[350071250,1737599443189,-500.0,0.00019452,2]
[350071251,1737599443200,-500.0,0.00019452,2]
[350071252,1737599443210,-500.0,0.00019452,2]
[350071253,1737599443219,-500.0,0.00019452,2]
[350071254,1737599443228,-546.27774706,0.00019452,2]
[350071255,1737599443238,-500.0,0.00019452,2]
[350071256,1737599443247,-1459.64,0.00019452,2]
[350071257,1737599443256,-671.25,0.00019452,2]
[350071258,1737599443266,-2004.83,0.00019452,2]
[350071259,1737599443277,-500.0,0.00019452,2]
[350071260,1737599443287,-500.0,0.00019452,2]
[350071261,1737599443296,-841.37,0.00019452,2]
[350071262,1737599443305,-1812.62,0.00019452,2]
[350071263,1737599443314,-1463.35,0.00019452,2]
[350071264,1737599443324,-924.69,0.00019452,2]
[350071265,1737599443333,-3081.37,0.00019452,2]
[350071266,1737599443343,-500.0,0.00019452,2]
[350071267,1737599443352,-694.55,0.00019452,2]
[350071268,1737599443362,-1262.91,0.00019452,2]
[350071269,1737599443372,-547.76,0.00019452,2]
[350071270,1737599443381,-929.07,0.00019452,2]
[350071271,1737599443390,-1206.37,0.00019452,2]
[350071272,1737599443399,-1867.47,0.00019452,2]
[350071273,1737599443409,-500.0,0.00019452,2]
[350071274,1737599443419,-1460.57,0.00019452,2]
[350071275,1737599443428,-1160.34,0.00019452,2]
[350071276,1737599443438,-500.0,0.00019452,2]
[350071277,1737599443450,-500.0,0.00019452,2]
[350071278,1737599443459,-500.0,0.00019452,2]
[350071279,1737599443469,-796.55,0.00019452,2]
[350071280,1737599443478,-1258.1,0.00019452,2]
[350071281,1737599443487,-1251.58,0.00019452,2]
[350071282,1737599443496,-2295.01,0.00019452,2]
[350071283,1737599443505,-2099.06,0.00019452,2]
[350071284,1737599443515,-1038.44,0.00019452,2]
[350071285,1737599443524,-859.68,0.00019452,2]
[350071286,1737599443534,-839.81,0.00019452,2]
[350071287,1737599443543,-500.0,0.00019452,2]
[350071288,1737599443552,-2809.15,0.00019452,2]
[350071289,1737599443561,-500.0,0.00019452,2]
[350071290,1737599443571,-500.0,0.00019452,2]
[350071291,1737599443581,-500.0,0.00019452,2]
[350071292,1737599443590,-500.0,0.00019452,2]
[350071293,1737599443599,-500.0,0.00019452,2]
[350071294,1737599443608,-512.25,0.00019452,2]
[350071295,1737599443618,-500.0,0.00019452,2]
[350071296,1737599443629,-500.0,0.00019452,2]
[350071297,1737599443640,-500.0,0.00019452,2]
[350071298,1737599443650,-847.25,0.00019452,2]
[350071299,1737599443659,-500.0,0.00019452,2]
[350071300,1737599443669,-809.53,0.00019452,2]
[350071301,1737599443678,-500.0,0.00019452,2]
[350071302,1737599443687,-500.0,0.00019452,2]
[350071303,1737599443702,-500.0,0.00019452,2]
[350071304,1737599443711,-500.0,0.00019452,2]
[350071305,1737599443720,-500.0,0.00019452,2]
[350071306,1737599443730,-500.0,0.00019452,2]
[350071307,1737599443739,-500.0,0.00019452,2]